fUST/lending_fUST_20240203
["ID","MTS","AMOUNT","RATE_DAILY","PERIOD"]
[313200783,1706929839060,-1451.78,0.00028215,2]
[313200784,1706929839069,-906.27,0.00028215,2]
[313200785,1706929839077,-6026.5,0.00028215,2]
[313200786,1706929839087,-500.0,0.00028216,2]
[313200787,1706929839096,-680.3,0.00028216,2]
[313200788,1706929839105,-636.48,0.00028216,2]
[313200789,1706929839114,-500.0,0.00028216,2]
[313200790,1706929839124,-500.0,0.00028216,2]
[313200791,1706929839132,-500.0,0.00028216,2]
[313200792,1706929839142,-1661.16,0.00028216,2]
[313200793,1706929839151,-500.0,0.00028216,2]
[313200794,1706929839159,-500.0,0.00028216,2]
[313200795,1706929839168,-2544.85,0.00028216,2]
[313200796,1706929839179,-677.6,0.00028216,2]
[313200797,1706929839188,-611.08,0.00028216,2]
[313200798,1706929839200,-500.0,0.00028216,2]
[313200799,1706929839210,-538.87,0.00028216,2]
[313200800,1706929839219,-500.0,0.00028216,2]
[313200801,1706929839229,-500.0,0.00028216,2]
[313200802,1706929839239,-500.0,0.00028217,2]
[313200803,1706929839250,-500.0,0.00028263,2]
[313200804,1706929839259,-500.0,0.00028263,2]
[313200805,1706929839268,-1451.78,0.00028489,2]
[313200806,1706929839278,-906.27,0.00028489,2]
[313200807,1706929839286,-6026.5,0.00028489,2]
[313200808,1706929839295,-500.0,0.0002849,2]
[313200809,1706929839305,-680.3,0.0002849,2]
[313200810,1706929839314,-636.48,0.0002849,2]
[313200811,1706929839324,-500.0,0.0002849,2]
[313200812,1706929839333,-500.0,0.0002849,2]
[313200813,1706929839342,-500.0,0.0002849,2]
[313200814,1706929839351,-1661.16,0.0002849,2]
[313200815,1706929839360,-500.0,0.0002849,2]
[313200816,1706929839369,-500.0,0.0002849,2]
[313200817,1706929839379,-2544.85,0.0002849,2]
[313200818,1706929839388,-677.6,0.0002849,2]
[313200819,1706929839397,-611.08,0.0002849,2]
[313200820,1706929839406,-500.0,0.0002849,2]
[313200821,1706929839415,-538.87,0.0002849,2]
[313200822,1706929839425,-500.0,0.0002849,2]
[313200823,1706929839435,-500.0,0.0002849,2]
[313200824,1706929839444,-500.0,0.00028491,2]
[313200825,1706929839454,-500.0,0.00028536,2]
[313200826,1706929839463,-500.0,0.00028536,2]
[313200827,1706929839473,-508.52516293,0.00028536,2]
[313200828,1706929839482,-421.66926461,0.00028537,2]
[313200829,1706929839492,-500.0,0.00028537,2]
[313200830,1706929839501,-1451.78,0.00028763,2]
[313200831,1706929839510,-906.27,0.00028763,2]
[313200832,1706929839519,-6026.5,0.00028763,2]
[313200833,1706929839528,-500.0,0.00028764,2]
[313200834,1706929839537,-680.3,0.00028764,2]
[313200835,1706929839546,-636.48,0.00028764,2]
[313200836,1706929839555,-543.4814642,0.00028764,2]
[313200837,1706929839564,-500.0,0.00028764,2]
[313200838,1706929839573,-500.0,0.00028764,2]
[313200839,1706929839583,-1661.16,0.00028764,2]
[313200840,1706929839592,-590.83815228,0.00028764,2]
[313200841,1706929839601,-500.0,0.00028764,2]
[313200842,1706929839611,-2544.85,0.00028764,2]
[313200843,1706929839620,-677.6,0.00028764,2]
[313200844,1706929839629,-611.08,0.00028764,2]
[313200845,1706929839638,-500.0,0.00028764,2]
[313200846,1706929839647,-538.87,0.00028764,2]
[313200847,1706929839656,-500.0,0.00028764,2]
[313200848,1706929839666,-500.0,0.00028764,2]
[313200849,1706929839675,-500.0,0.00028765,2]
[313200850,1706929839684,-22538.5362242,0.000288,4]
[313200851,1706929839693,-631.88570902,0.00028811,2]
[313200852,1706929839702,-155.0310062,0.00029,2]
[313200854,1706929839711,-1451.78,0.00029037,2]
[313200856,1706929839720,-906.27,0.00029037,2]
[313200857,1706929839730,-6026.5,0.00029037,2]
[313200858,1706929839739,-253.54299385,0.00029038,2]
[313200859,1706929839748,-680.3,0.00029038,2]
[313200860,1706929839757,-636.48,0.00029038,2]
[313200861,1706929839766,-500.0,0.00029038,2]
[313200862,1706929839775,-500.0,0.00029038,2]
[313200863,1706929839784,-1661.16,0.00029038,2]
[313200864,1706929839793,-500.0,0.00029038,2]
[313200865,1706929839801,-2544.85,0.00029038,2]
[313200866,1706929839905,-677.6,0.00029038,2]
[313200867,1706929839915,-611.08,0.00029038,2]
[313200868,1706929839924,-500.0,0.00029038,2]
[313200869,1706929839935,-538.87,0.00029038,2]
[313200870,1706929839944,-500.0,0.00029038,2]
[313200871,1706929839953,-500.0,0.00029038,2]
[313200872,1706929839962,-686.63337488,0.00029039,2]
[313200873,1706929839971,-297.15802593,0.00029039,2]
[313200874,1706929839982,-544.12604261,0.00029039,2]
[313200875,1706929839993,-500.0,0.00029039,2]
[313200876,1706929840003,-1451.78,0.00029311,2]
[313200877,1706929840012,-906.27,0.00029311,2]
[313200878,1706929840021,-6026.5,0.00029311,2]
[313200879,1706929840030,-680.3,0.00029312,2]
[313200880,1706929840039,-636.48,0.00029312,2]
[313200881,1706929840049,-500.0,0.00029312,2]
[313200882,1706929840058,-500.0,0.00029312,2]
[313200883,1706929840067,-1661.16,0.00029312,2]
[313200884,1706929840076,-500.0,0.00029312,2]
[313200885,1706929840086,-2544.85,0.00029312,2]
[313200886,1706929840094,-677.6,0.00029312,2]
[313200887,1706929840103,-611.08,0.00029312,2]
[313200888,1706929840112,-500.0,0.00029312,2]
[313200889,1706929840122,-538.87,0.00029312,2]
[313200890,1706929840131,-500.0,0.00029312,2]
[313200891,1706929840140,-580.00055817,0.00029312,2]
[313200892,1706929840150,-500.0,0.00029313,2]
[313200893,1706929840160,-22091.6094346,0.000295,30]
[313200894,1706929840170,-151.6791851,0.00029521,2]
[313200895,1706929840179,-1451.78,0.00029585,2]
[313200896,1706929840188,-906.27,0.00029585,2]
[313200897,1706929840197,-6026.5,0.00029585,2]
[313200898,1706929840207,-680.3,0.00029586,2]
[313200899,1706929840217,-636.48,0.00029586,2]
[313200900,1706929840226,-500.0,0.00029586,2]
[313200901,1706929840235,-254.82328316,0.00029586,2]
[313200902,1706929840245,-1661.16,0.00029586,2]
[313200903,1706929840254,-500.0,0.00029586,2]
[313200904,1706929840263,-2544.85,0.00029586,2]
[313200905,1706929840272,-677.6,0.00029586,2]
[313200906,1706929840283,-611.08,0.00029586,2]
[313200907,1706929840294,-500.0,0.00029586,2]
[313200908,1706929840303,-538.87,0.00029586,2]
[313200909,1706929840312,-500.0,0.00029586,2]
[313200910,1706929840322,-500.0,0.00029587,2]
[313200911,1706929840332,-386.62570161,0.0002961,2]
[313200912,1706929840341,-151.02416387,0.00029618,7]
[313200913,1706929840350,-50000.0,0.0002963,5]
[313200914,1706929840359,-263.23887918,0.0002971,3]
[313200915,1706929840369,-1451.78,0.00029859,2]
[313200916,1706929840378,-906.27,0.00029859,2]
[313200917,1706929840386,-6026.5,0.00029859,2]
[313200918,1706929840395,-680.3,0.0002986,2]
[313200919,1706929840405,-636.48,0.0002986,2]
[313200920,1706929840414,-500.0,0.0002986,2]
[313200921,1706929840423,-1661.16,0.0002986,2]
[313200922,1706929840433,-500.0,0.0002986,2]
[313200923,1706929840442,-2544.85,0.0002986,2]
[313200924,1706929840451,-677.6,0.0002986,2]
[313200925,1706929840460,-611.08,0.0002986,2]
[313200926,1706929840469,-500.0,0.0002986,2]
[313200927,1706929840478,-538.87,0.0002986,2]
[313200928,1706929840487,-500.0,0.0002986,2]
[313200929,1706929840497,-500.0,0.00029861,2]
[313200930,1706929840506,-245.91961295,0.00029889,2]
[313200931,1706929840515,-30002.3071,0.000299,2]
[313200932,1706929840524,-155.06510415,0.00029996,2]
[313200933,1706929840534,-323.48853251,0.00029996,2]
[313200934,1706929840543,-273.02300698,0.00029996,2]
[313200935,1706929840553,-155.07130514,0.00029996,2]
[313200936,1706929840562,-286.80419765,0.00029996,2]
[313200937,1706929840572,-1066.55839783,0.00029998,2]
[313200938,1706929840581,-191.68445549,0.00029999,3]
[313200939,1706929840590,-31297.18394346,0.00029999,3]
[313200986,1706929844549,-1171.26,0.0002999,3]
[313200987,1706929844559,-3839.35224406,0.00029999,3]
[313201097,1706931032455,-197.12518855,0.00024735,2]
[313201099,1706931032465,-828.77819702,0.00024735,2]
[313201101,1706931032474,-335.29979556,0.00027799,2]
[313201103,1706931032483,-98.61194209,0.000278,2]
[313201183,1706931038512,-328.33099558,0.000278,2]
[313201185,1706931038522,-156.4351834,0.00027944,2]
[313201186,1706931038531,-207.48093728,0.00027944,2]
[313201187,1706931038542,-726.5834505,0.00027944,7]
[313201311,1706931043538,-2930.27904631,0.00027944,7]
[313201477,1706932232609,-170.32070418,0.00024735,2]
[313201479,1706932232618,-335.29979556,0.00025843,2]
[313201481,1706932232629,-688.81382175,0.00025844,2]
[313201483,1706932232638,-377.55632411,0.00027943,5]
[313201749,1706932238779,-1212.5555899,0.00027943,5]
[313201828,1706933431855,-166.6666672,0.00023855,2]
[313201829,1706933431864,-1585.69628601,0.00024634,2]
[313201830,1706933431873,-187.71315844,0.00024635,2]
[313201831,1706933431883,-1185.18,0.00024725,3]
[313201832,1706933431891,-49446.7268312,0.00024735,2]
[313201881,1706933437958,-20828.46392867,0.00024735,2]
[313201883,1706933437969,-16397.54451063,0.00024735,2]
[313201885,1706933437978,-3443.48434723,0.00024735,2]
[313201887,1706933437987,-335.29979556,0.00025,2]
[313201889,1706933437996,-459.2092145,0.00025843,2]
[313201891,1706933438006,-200.0,0.00027196,15]
[313201893,1706933438015,-500.0,0.00027397,2]
[313201894,1706933438024,-500.0,0.00027397,2]
[313201896,1706933438033,-630.97506097,0.00027397,2]
[313201897,1706933438042,-500.0,0.00027397,2]
[313201898,1706933438053,-500.0,0.00027397,2]
[313201899,1706933438065,-500.0,0.00027397,2]
[313201900,1706933438074,-500.0,0.00027397,2]
[313201901,1706933438082,-651.13,0.00027397,2]
[313201902,1706933438092,-1537.07,0.00027397,2]
[313201903,1706933438102,-421.254,0.00027397,2]
[313201904,1706933438111,-594.49,0.00027397,2]
[313201905,1706933438121,-2036.68,0.00027397,2]
[313201906,1706933438130,-500.0,0.00027397,2]
[313201907,1706933438139,-500.0,0.00027397,2]
[313201908,1706933438148,-500.0,0.00027397,2]
[313201909,1706933438157,-1311.67,0.00027397,2]
[313201910,1706933438166,-515.34,0.00027397,2]
[313201911,1706933438175,-500.0,0.00027397,2]
[313201912,1706933438184,-500.0,0.00027397,2]
[313201913,1706933438193,-500.0,0.00027397,2]
[313201914,1706933438202,-500.0,0.00027397,2]
[313201915,1706933438211,-500.0,0.00027397,2]
[313201916,1706933438220,-574.06,0.00027397,2]
[313201917,1706933438230,-841.26,0.00027397,2]
[313201918,1706933438239,-4929.21,0.00027397,2]
[313201919,1706933438249,-690.59,0.00027397,2]
[313201920,1706933438258,-597.57,0.00027397,2]
[313201921,1706933438267,-500.0,0.00027397,2]
[313201922,1706933438277,-500.0,0.00027397,2]
[313201923,1706933438286,-500.0,0.00027397,2]
[313201924,1706933438295,-500.0,0.00027397,2]
[313201925,1706933438305,-500.0,0.00027397,2]
[313201926,1706933438314,-500.0,0.00027397,2]
[313201927,1706933438323,-500.0,0.00027397,2]
[313201928,1706933438333,-500.0,0.00027397,2]
[313201929,1706933438342,-2751.59,0.00027661,3]
[313201930,1706933438352,-500.0,0.00027671,2]
[313201931,1706933438361,-500.0,0.00027671,2]
[313201932,1706933438370,-651.13,0.00027671,2]
[313201933,1706933438379,-1537.07,0.00027671,2]
[313201934,1706933438389,-594.49,0.00027671,2]
[313201935,1706933438398,-2036.68,0.00027671,2]
[313201936,1706933438407,-500.0,0.00027671,2]
[313201937,1706933438416,-500.0,0.00027671,2]
[313201938,1706933438426,-500.0,0.00027671,2]
[313201939,1706933438435,-1311.67,0.00027671,2]
[313201940,1706933438444,-515.34,0.00027671,2]
[313201941,1706933438453,-500.0,0.00027671,2]
[313201942,1706933438463,-500.0,0.00027671,2]
[313201943,1706933438472,-574.06,0.00027671,2]
[313201944,1706933438482,-841.26,0.00027671,2]
[313201945,1706933438491,-4929.21,0.00027671,2]
[313201946,1706933438501,-690.59,0.00027671,2]
[313201947,1706933438510,-597.57,0.00027671,2]
[313201948,1706933438519,-500.0,0.00027671,2]
[313201949,1706933438529,-500.0,0.00027671,2]
[313201950,1706933438538,-507.67886997,0.00027671,2]
[313201951,1706933438548,-500.0,0.00027671,2]
[313201952,1706933438558,-3000.0,0.000277,4]
[313201953,1706933438568,-152.374894,0.00027803,2]
[313201954,1706933438577,-187.71315844,0.00027843,2]
[313201955,1706933438586,-347.96313144,0.00027843,2]
[313201956,1706933438595,-151.91914008,0.00027887,2]
[313201957,1706933438604,-500.0,0.00027942,2]
[313201958,1706933438613,-500.0,0.00027942,2]
[313201959,1706933438622,-500.0,0.00027942,2]
[313201960,1706933438631,-500.0,0.00027942,2]
[313201961,1706933438641,-500.0,0.00027942,2]
[313201962,1706933438650,-193.13142889,0.00027942,2]
[313201963,1706933438659,-500.0,0.00027942,2]
[313201964,1706933438669,-500.0,0.00027942,2]
[313201965,1706933438678,-500.0,0.00027942,2]
[313201966,1706933438687,-222.76887342,0.00027942,2]
[313201967,1706933438696,-500.0,0.00027942,2]
[313201968,1706933438706,-500.0,0.00027942,2]
[313201969,1706933438715,-500.0,0.00027942,2]
[313201970,1706933438724,-500.0,0.00027942,2]
[313201971,1706933438734,-500.0,0.00027942,2]
[313201972,1706933438744,-252.05824631,0.00027942,2]
[313201973,1706933438755,-553.42476983,0.00027942,2]
[313201974,1706933438765,-500.0,0.00027942,2]
[313201975,1706933438774,-500.0,0.00027942,2]
[313201976,1706933438783,-293.57124795,0.00027942,2]
[313201977,1706933438792,-500.0,0.00027942,2]
[313201978,1706933438802,-500.0,0.00027942,2]
[313201979,1706933438812,-361.57422726,0.00027942,2]
[313201980,1706933438821,-459.30045149,0.00027942,2]
[313201981,1706933438830,-500.0,0.00027942,2]
[313201982,1706933438840,-500.0,0.00027942,2]
[313201983,1706933438850,-500.0,0.00027942,2]
[313201984,1706933438861,-500.0,0.00027942,2]
[313201985,1706933438870,-500.0,0.00027942,2]
[313201986,1706933438878,-500.0,0.00027942,2]
[313201987,1706933438888,-500.0,0.00027942,2]
[313201988,1706933438898,-500.0,0.00027942,2]
[313201989,1706933438907,-500.0,0.00027942,2]
[313201990,1706933438918,-500.0,0.00027942,2]
[313201991,1706933438927,-500.0,0.00027942,2]
[313201992,1706933438938,-500.0,0.00027942,2]
[313201993,1706933438947,-500.0,0.00027942,2]
[313201994,1706933438956,-500.0,0.00027942,2]
[313201995,1706933438966,-500.0,0.00027942,2]
[313201996,1706933438978,-500.0,0.00027942,2]
[313201997,1706933438988,-584.53167723,0.00027942,2]
[313201998,1706933438998,-500.0,0.00027942,2]
[313201999,1706933439010,-500.0,0.00027942,2]
[313202000,1706933439021,-500.0,0.00027942,2]
[313202001,1706933439032,-500.0,0.00027942,2]
[313202002,1706933439041,-500.0,0.00027942,2]
[313202003,1706933439052,-500.0,0.00027942,2]
[313202004,1706933439063,-500.0,0.00027942,2]
[313202005,1706933439072,-500.0,0.00027942,2]
[313202006,1706933439081,-500.0,0.00027942,2]
[313202007,1706933439090,-500.0,0.00027942,2]
[313202008,1706933439100,-500.0,0.00027942,2]
[313202009,1706933439109,-594.41036581,0.00027942,2]
[313202010,1706933439118,-500.0,0.00027942,2]
[313202011,1706933439127,-2095.59166535,0.00027943,2]
[313202012,1706933439137,-1836.32800721,0.00027943,2]
[313202013,1706933439146,-300.0,0.00027943,2]
[313202014,1706933439156,-212560.30192206,0.00027943,7]
[313202015,1706933439165,-151.688273,0.00027943,2]
[313202016,1706933439174,-155.528036,0.00027943,2]
[313202017,1706933439183,-151.0,0.00027943,2]
[313202018,1706933439191,-151.0,0.00027943,2]
[313202019,1706933439200,-160.160236,0.00027943,2]
[313202020,1706933439209,-152.998357,0.00027943,2]
[313202021,1706933439218,-316.142109,0.00027943,2]
[313202022,1706933439227,-316.142109,0.00027943,2]
[313202023,1706933439237,-500.0,0.00027945,2]
[313202024,1706933439247,-651.13,0.00027945,2]
[313202025,1706933439257,-1537.07,0.00027945,2]
[313202026,1706933439267,-594.49,0.00027945,2]
[313202027,1706933439277,-2036.68,0.00027945,2]
[313202028,1706933439287,-500.0,0.00027945,2]
[313202029,1706933439297,-500.0,0.00027945,2]
[313202030,1706933439306,-1311.67,0.00027945,2]
[313202031,1706933439315,-515.34,0.00027945,2]
[313202032,1706933439325,-500.0,0.00027945,2]
[313202033,1706933439336,-574.06,0.00027945,2]
[313202034,1706933439345,-841.26,0.00027945,2]
[313202035,1706933439354,-4929.21,0.00027945,2]
[313202036,1706933439364,-690.59,0.00027945,2]
[313202037,1706933439374,-597.57,0.00027945,2]
[313202038,1706933439383,-500.0,0.00027945,2]
[313202039,1706933439392,-500.0,0.00027945,2]
[313202040,1706933439402,-500.0,0.00027945,2]
[313202041,1706933439411,-2039.50232902,0.00027999,5]
[313202042,1706933439422,-51099.57217898,0.00028,2]
[313202043,1706933439431,-152.052522,0.00028,2]
[313202044,1706933439441,-151.0,0.00028,2]
[313202045,1706933439450,-151.0,0.00028,2]
[313202046,1706933439460,-316.142109,0.00028,2]
[313202047,1706933439470,-316.142109,0.00028,2]
[313202048,1706933439479,-500.0,0.00028219,2]
[313202049,1706933439489,-651.13,0.00028219,2]
[313202050,1706933439499,-1537.07,0.00028219,2]
[313202051,1706933439508,-594.49,0.00028219,2]
[313202052,1706933439518,-2036.68,0.00028219,2]
[313202053,1706933439527,-500.0,0.00028219,2]
[313202054,1706933439536,-1311.67,0.00028219,2]
[313202055,1706933439545,-515.34,0.00028219,2]
[313202056,1706933439555,-574.06,0.00028219,2]
[313202057,1706933439565,-841.26,0.00028219,2]
[313202058,1706933439574,-4929.21,0.00028219,2]
[313202059,1706933439583,-690.59,0.00028219,2]
[313202060,1706933439592,-597.57,0.00028219,2]
[313202061,1706933439601,-500.0,0.00028219,2]
[313202062,1706933439610,-500.0,0.00028219,2]
[313202063,1706933439619,-6062.20456892,0.00028451,2]
[313202064,1706933439628,-151.0,0.00028493,2]
[313202065,1706933439638,-500.0,0.00028493,2]
[313202066,1706933439647,-651.13,0.00028493,2]
[313202067,1706933439656,-1537.07,0.00028493,2]
[313202068,1706933439665,-594.49,0.00028493,2]
[313202069,1706933439674,-2036.68,0.00028493,2]
[313202070,1706933439683,-316.142109,0.00028493,2]
[313202071,1706933439692,-316.142109,0.00028493,2]
[313202072,1706933439701,-500.0,0.00028493,2]
[313202073,1706933439711,-1311.67,0.00028493,2]
[313202074,1706933439720,-515.34,0.00028493,2]
[313202075,1706933439729,-574.06,0.00028493,2]
[313202076,1706933439739,-841.26,0.00028493,2]
[313202077,1706933439749,-4929.21,0.00028493,2]
[313202078,1706933439758,-690.59,0.00028493,2]
[313202079,1706933439767,-597.57,0.00028493,2]
[313202080,1706933439777,-500.0,0.00028493,2]
[313202081,1706933439786,-500.0,0.00028493,2]
[313202082,1706933439795,-500.0,0.00028767,2]
[313202083,1706933439804,-651.13,0.00028767,2]
[313202084,1706933439813,-1537.07,0.00028767,2]
[313202085,1706933439822,-594.49,0.00028767,2]
[313202086,1706933439831,-2036.68,0.00028767,2]
[313202087,1706933439842,-316.142109,0.00028767,2]
[313202088,1706933439853,-316.142109,0.00028767,2]
[313202089,1706933439862,-500.0,0.00028767,2]
[313202090,1706933439871,-1311.67,0.00028767,2]
[313202092,1706933439880,-515.34,0.00028767,2]
[313202094,1706933439890,-574.06,0.00028767,2]
[313202096,1706933439899,-841.26,0.00028767,2]
[313202098,1706933439908,-4929.21,0.00028767,2]
[313202100,1706933439917,-690.59,0.00028767,2]
[313202102,1706933439927,-597.57,0.00028767,2]
[313202104,1706933439936,-500.0,0.00028767,2]
[313202106,1706933439945,-500.0,0.00028767,2]
[313202108,1706933439954,-151.0,0.00028775,2]
[313202110,1706933439964,-22540.91835848,0.000288,4]
[313202112,1706933439975,-151.292723,0.000288,2]
[313202114,1706933439985,-316.142109,0.000288,2]
[313202116,1706933439994,-316.142109,0.000288,2]
[313202118,1706933440003,-189.07302085,0.00029,2]
[313202121,1706933440013,-18781.75651947,0.00029,4]
[313202123,1706933440022,-500.0,0.00029041,2]
[313202125,1706933440031,-1537.07,0.00029041,2]
[313202127,1706933440041,-651.13,0.00029041,2]
[313202129,1706933440053,-594.49,0.00029041,2]
[313202131,1706933440063,-2036.68,0.00029041,2]
[313202134,1706933440073,-316.142109,0.00029041,2]
[313202135,1706933440082,-316.142109,0.00029041,2]
[313202138,1706933440091,-500.0,0.00029041,2]
[313202140,1706933440100,-1311.67,0.00029041,2]
[313202142,1706933440110,-515.34,0.00029041,2]
[313202144,1706933440119,-574.06,0.00029041,2]
[313202146,1706933440128,-841.26,0.00029041,2]
[313202148,1706933440137,-4929.21,0.00029041,2]
[313202159,1706933440227,-690.59,0.00029041,2]
[313202161,1706933440237,-597.57,0.00029041,2]
[313202162,1706933440247,-500.0,0.00029041,2]
[313202163,1706933440257,-500.0,0.00029041,2]
[313202165,1706933440267,-500.0,0.00029311,2]
[313202167,1706933440277,-197.2085266,0.00029311,2]
[313202169,1706933440286,-500.0,0.00029311,2]
[313202171,1706933440295,-330.20785337,0.00029311,2]
[313202173,1706933440305,-500.0,0.00029311,2]
[313202175,1706933440316,-500.0,0.00029311,2]
[313202177,1706933440325,-395.45550175,0.00029311,2]
[313202178,1706933440334,-500.0,0.00029311,2]
[313202179,1706933440343,-500.0,0.00029311,2]
[313202180,1706933440352,-500.0,0.00029311,2]
[313202181,1706933440362,-500.0,0.00029311,2]
[313202182,1706933440371,-500.0,0.00029311,2]
[313202183,1706933440380,-292.42879777,0.00029311,2]
[313202184,1706933440390,-500.0,0.00029311,2]
[313202185,1706933440399,-500.0,0.00029311,2]
[313202186,1706933440408,-500.0,0.00029311,2]
[313202187,1706933440418,-590.53960343,0.00029311,2]
[313202188,1706933440428,-500.0,0.00029311,2]
[313202189,1706933440437,-500.0,0.00029311,2]
[313202190,1706933440447,-500.0,0.00029311,2]
[313202191,1706933440458,-512.46485003,0.00029311,2]
[313202192,1706933440470,-396.93657284,0.00029311,2]
[313202193,1706933440479,-500.0,0.00029311,2]
[313202194,1706933440489,-500.0,0.00029311,2]
[313202195,1706933440499,-500.0,0.00029311,2]
[313202196,1706933440508,-500.0,0.00029311,2]
[313202197,1706933440517,-500.0,0.00029311,2]
[313202198,1706933440527,-500.0,0.00029311,2]
[313202199,1706933440537,-500.0,0.00029315,2]
[313202200,1706933440546,-1537.07,0.00029315,2]
[313202201,1706933440556,-651.13,0.00029315,2]
[313202202,1706933440565,-594.49,0.00029315,2]
[313202203,1706933440575,-2036.68,0.00029315,2]
[313202204,1706933440584,-316.142109,0.00029315,2]
[313202205,1706933440594,-316.142109,0.00029315,2]
[313202206,1706933440603,-500.0,0.00029315,2]
[313202207,1706933440612,-1311.67,0.00029315,2]
[313202208,1706933440621,-515.34,0.00029315,2]
[313202209,1706933440631,-574.06,0.00029315,2]
[313202210,1706933440640,-841.26,0.00029315,2]
[313202211,1706933440649,-4649.18432109,0.00029315,2]
[313202240,1706933443940,-421.254,0.00028219,2]
[313202261,1706933445928,-78.746,0.00028219,2]
[313202262,1706933445937,-173.51428481,0.00028493,2]
[313202342,1706934631983,-170.11973958,0.00024635,2]
[313202344,1706934631992,-2043.1368023,0.00024734,2]
[313202346,1706934632001,-8544.09020411,0.00024735,2]
[313202483,1706934641302,-419.266,0.00024735,2]
[313202590,1706934646209,-7040.53638656,0.00024735,2]
[313202721,1706935838336,-155.01860223,0.00021955,2]
[313202722,1706935838345,-155.01860223,0.00021956,2]
[313202723,1706935838355,-2043.1368023,0.00021956,2]
[313202724,1706935838365,-15651.47925234,0.00021956,2]
[313202725,1706935838376,-5000.0,0.00021959,2]
[313202726,1706935838388,-4580.459866,0.00022194,2]
[313202727,1706935838397,-3432.6283702,0.00022469,2]
[313202728,1706935838407,-306.13947633,0.00022635,2]
[313202729,1706935838418,-3564.24391037,0.00024347,2]
[313202730,1706935838427,-1497.22948882,0.00024349,2]
[313202731,1706935838439,-449.16884665,0.00024349,2]
[313202732,1706935838450,-380.0,0.00024658,2]
[313202733,1706935838460,-7421.17099595,0.00024735,2]
[313202734,1706935838469,-2045.88380413,0.00024735,2]
[313202735,1706935838479,-1303.83849247,0.00024735,2]
[313202736,1706935838488,-155.89353315,0.00024735,2]
[313202737,1706935838498,-157.78531375,0.00024735,2]
[313202738,1706935838507,-670.03578593,0.00024735,2]
[313202739,1706935838516,-239.83036797,0.00024735,2]
[313202740,1706935838525,-1552.62043502,0.00024735,2]
[313202741,1706935838534,-6494.22624452,0.00024735,2]
[313202742,1706935838543,-1682.72413037,0.00024735,2]
[313202743,1706935838553,-210.32639502,0.00025,2]
[313202744,1706935838563,-7139.33282423,0.00025,2]
[313202745,1706935838573,-534.69538579,0.00027026,2]
[313202746,1706935838583,-335.29979556,0.00027027,2]
[313202747,1706935838596,-7224.35,0.00027058,3]
[313202748,1706935838607,-8668.59935887,0.00027068,4]
[313202749,1706935838618,-500.0,0.00027397,2]
[313202750,1706935838629,-500.0,0.00027397,2]
[313202751,1706935838639,-500.0,0.00027397,2]
[313202752,1706935838649,-500.0,0.00027397,2]
[313202753,1706935838659,-500.0,0.00027397,2]
[313202754,1706935838671,-500.0,0.00027397,2]
[313202755,1706935838683,-503.94508043,0.00027397,2]
[313202756,1706935838692,-500.0,0.00027397,2]
[313202757,1706935838701,-500.0,0.00027397,2]
[313202758,1706935838712,-513.36876796,0.00027397,2]
[313202759,1706935838722,-500.0,0.00027397,2]
[313202760,1706935838731,-500.0,0.00027397,2]